bitfinex/quotes_BTCUSD_20240823
["timestamp","ask_amount","ask_price","bid_price","bid_amount"]
[1724420240825,0.02562981,61191.0,61190.0,1.148975]
[1724420241022,0.02562981,61191.0,61190.0,2.24317358]
[1724420241166,0.0002,61199.0,61190.0,2.24317358]
[1724420241167,0.0002,61199.0,61198.0,1.554236]
[1724420241345,0.0002,61199.0,61198.0,2.19988458]
[1724420241547,0.0002,61199.0,61198.0,2.26648458]
[1724420241749,0.0793,61234.0,61199.0,1.655599]
[1724420241997,0.242608,61234.0,61199.0,2.35049419]
[1724420242331,0.02561964,61222.0,61218.0,1.148453]
[1724420242448,0.0637,61219.0,61218.0,0.16400298]
[1724420242665,0.227047,61219.0,61218.0,0.16400298]
[1724420242868,0.144,61219.0,61206.0,0.003]
[1724420243122,0.144,61219.0,61207.0,0.16400298]
[1724420243273,0.144,61219.0,61211.0,0.163368]
[1724420243467,0.144,61219.0,61210.0,0.001]
[1724420243468,0.144,61219.0,61212.0,0.16400298]
[1724420243671,0.240463,61213.0,61212.0,0.16400298]
[1724420243877,0.56719,61213.0,61212.0,0.16400298]
[1724420244085,0.56719,61213.0,61197.0,0.0808]
[1724420244086,0.1378,61210.0,61197.0,0.001]
[1724420244285,0.1378,61210.0,61198.0,0.16400298]
[1724420244286,0.163395,61202.0,61198.0,0.16400298]
[1724420244501,0.163379,61208.0,61203.0,0.001]
[1724420244702,0.163379,61208.0,61199.0,0.1]
[1724420244703,0.326754,61208.0,61204.0,0.16400298]
[1724420244902,0.163377,61208.0,61204.0,0.16400298]
[1724420245317,0.1378,61210.0,61204.0,0.16400298]
[1724420245515,0.163385,61205.0,61204.0,0.16400298]
[1724420245762,0.1378,61210.0,61204.0,0.16400298]
[1724420245965,0.1378,61210.0,61207.0,0.163378]
[1724420246171,0.1403,61218.0,61212.0,0.005]
[1724420246336,0.163356,61216.0,61213.0,0.16400298]
[1724420246559,0.467005,61218.0,61213.0,0.32736498]
[1724420246560,0.303652,61218.0,61213.0,0.32736498]
[1724420246761,0.02561953,61216.0,61215.0,0.163357]
[1724420247016,0.02561953,61216.0,61215.0,0.65507598]
[1724420247217,0.02561953,61216.0,61215.0,0.98379298]
[1724420247441,0.02561953,61216.0,61215.0,1.03576395]
[1724420247648,0.02561953,61216.0,61215.0,1.46448095]
[1724420248257,0.02561953,61216.0,61215.0,1.46548095]
[1724420248655,0.02561953,61216.0,61215.0,1.46448095]
[1724420248834,0.02561953,61216.0,61215.0,1.13776395]
[1724420249041,0.02561953,61216.0,61215.0,1.13676395]
[1724420249240,0.02561953,61216.0,61215.0,1.46348095]
[1724420249448,0.02561953,61216.0,61215.0,1.46248095]
[1724420249660,0.02561953,61216.0,61215.0,1.46448095]
[1724420249888,0.02561953,61216.0,61215.0,1.89834177]
[1724420250103,0.00012,61221.0,61218.0,1.2604976]
[1724420250323,0.00012,61221.0,61220.0,0.901825]
[1724420250523,0.00012,61221.0,61220.0,1.84220798]
[1724420250734,0.00012,61221.0,61220.0,1.89417895]
[1724420250941,0.00012,61221.0,61220.0,2.22086895]
[1724420251147,0.00012,61221.0,61220.0,2.28556895]
[1724420251352,0.49229154,61248.0,61238.0,1.148079]
[1724420251559,0.49229154,61248.0,61238.0,1.91552758]
[1724420251782,4e-05,61255.0,61238.0,2.29409255]
[1724420252007,4e-05,61255.0,61238.0,2.31709255]
[1724420252428,4e-05,61255.0,61238.0,2.51709255]
[1724420252846,4e-05,61255.0,61238.0,2.54988255]
[1724420253459,4e-05,61255.0,61238.0,2.51709255]
[1724420253871,4e-05,61255.0,61238.0,2.29312158]
[1724420254082,0.0801,61254.0,61238.0,1.95148877]
[1724420254285,0.0801,61254.0,61238.0,1.93748877]
[1724420254482,0.0801,61254.0,61238.0,1.95148877]
[1724420254885,0.0801,61254.0,61238.0,1.93748877]
[1724420255504,0.0801,61254.0,61238.0,1.92348877]
[1724420255915,0.00024,61239.0,61238.0,1.93748877]
[1724420256116,0.00024,61239.0,61238.0,1.94969875]
[1724420256666,0.00024,61239.0,61238.0,1.96369875]
[1724420257085,0.00024,61239.0,61238.0,1.93569875]
[1724420257287,0.00024,61239.0,61238.0,1.10065915]
[1724420257488,0.00024,61239.0,61238.0,1.13165915]
[1724420257766,0.00024,61239.0,61238.0,1.12965915]
[1724420258057,0.00024,61239.0,61238.0,0.80206515]
[1724420258409,0.00024,61239.0,61238.0,0.46750996]
[1724420258611,0.303234,61239.0,61238.0,0.19021296]
[1724420259047,0.629823,61239.0,61238.0,0.20421296]
[1724420259244,0.629823,61239.0,61238.0,0.19021296]
[1724420259445,0.956412,61239.0,61238.0,0.17800298]
[1724420259649,0.956412,61239.0,61238.0,0.17500298]
[1724420259858,1.32067198,61239.0,61238.0,0.003]
[1724420260033,1.283001,61239.0,61238.0,0.003]
[1724420261660,1.308612,61239.0,61238.0,0.003]
[1724420262035,1.308612,61239.0,61226.0,0.003]
[1724420262036,0.163322,61229.0,61226.0,0.003]
[1724420262172,0.163323,61228.0,61227.0,0.16400298]
[1724420262379,0.163323,61228.0,61227.0,0.18254173]
[1724420262664,0.57287,61228.0,61227.0,0.18254173]
[1724420262873,0.59848168,61228.0,61227.0,0.18254173]
[1724420263077,0.92512868,61228.0,61227.0,0.17790704]
[1724420263278,0.49785868,61228.0,61216.0,0.101]
[1724420263483,0.326676,61223.0,61218.0,0.003]
[1724420263691,0.326683,61222.0,61219.0,0.16400298]
[1724420263905,0.49785868,61228.0,61227.0,0.008]
[1724420263906,0.33453468,61228.0,61227.0,0.008]
[1724420264111,0.66118168,61228.0,61227.0,0.008]
[1724420264529,0.98782868,61228.0,61227.0,0.008]
[1724420264883,1.31447568,61228.0,61227.0,0.008]
[1724420265086,0.98782868,61228.0,61227.0,0.008]
[1724420265288,1.31447568,61228.0,61227.0,0.008]
[1724420265697,1.83710006,61228.0,61227.0,0.008]
[1724420265896,0.163353,61217.0,61212.0,0.1]
[1724420266223,0.0607,61214.0,61213.0,0.17801295]
[1724420266430,0.299161,61214.0,61213.0,0.17801295]
[1724420266632,0.299161,61214.0,61213.0,0.27801295]
[1724420267035,0.625883,61214.0,61213.0,0.17801295]
[1724420267184,0.1358,61214.0,61213.0,0.17801295]
[1724420267394,0.1358,61214.0,61213.0,0.32736598]
[1724420267972,0.1358,61214.0,61213.0,0.34437595]
[1724420268183,0.02561756,61216.0,61215.0,1.146509]
[1724420268385,0.0817,61224.0,61223.0,0.493011]
[1724420268595,0.0662,61225.0,61224.0,0.491003]
[1724420268751,0.0817,61229.0,61224.0,0.49367198]
[1724420268982,0.0662,61231.0,61225.0,0.17892217]
[1724420269146,0.02561381,61228.0,61227.0,0.163325]
[1724420269348,0.02561381,61228.0,61227.0,0.34123204]
[1724420269548,0.02561381,61228.0,61227.0,0.17790704]
[1724420269955,0.02561381,61228.0,61227.0,0.34123304]
[1724420270174,0.02561381,61228.0,61227.0,0.66888604]
[1724420270576,0.02961381,61228.0,61227.0,0.66888604]
[1724420271012,0.02961381,61228.0,61227.0,0.99653904]
[1724420271332,0.02961381,61228.0,61227.0,0.99853904]
[1724420271555,0.02961381,61228.0,61227.0,0.99553904]
[1724420272025,0.43936081,61228.0,61227.0,0.01490406]
[1724420272280,0.74484439,61228.0,61227.0,0.01490406]
[1724420272527,0.74484439,61228.0,61227.0,0.001]
[1724420272528,1.34367781,61228.0,61227.0,0.001]
[1724420272761,0.05261381,61228.0,61198.0,0.003]
[1724420272988,0.0795,61210.0,61207.0,0.163379]
[1724420273227,0.0795,61210.0,61208.0,0.16400298]
[1724420273463,0.10512013,61210.0,61208.0,0.1805687]
[1724420273697,0.10512013,61210.0,61208.0,0.3439457]
[1724420273948,0.10512013,61210.0,61208.0,0.1805687]
[1724420274203,0.163374,61209.0,61208.0,0.1805687]
[1724420274407,0.490123,61209.0,61208.0,0.1805687]
[1724420274672,0.16812013,61210.0,61208.0,0.16400298]
[1724420274859,0.490123,61209.0,61208.0,0.17100298]
[1724420275009,0.163374,61209.0,61208.0,0.17100298]
[1724420275219,0.490123,61209.0,61208.0,0.17100298]
[1724420275422,0.816872,61209.0,61208.0,0.007]
[1724420275638,1.143621,61209.0,61208.0,0.007]
[1724420276047,1.143621,61209.0,61208.0,0.011]
[1724420276254,1.143621,61209.0,61208.0,0.007]
[1724420276460,0.163396,61201.0,61196.0,0.263408]
[1724420276665,0.163398,61200.0,61197.0,0.16400298]
[1724420276867,0.0809,61199.0,61197.0,0.16400298]
[1724420277070,0.163404,61198.0,61197.0,0.16400298]
[1724420277932,0.163404,61198.0,61196.0,0.003]
[1724420277933,0.226106,61197.0,61196.0,0.003]
[1724420278132,0.552919,61197.0,61196.0,0.003]
[1724420278351,0.163409,61196.0,61191.0,0.163421]
[1724420278558,0.163413,61195.0,61192.0,0.16400298]
[1724420278753,0.163415,61194.0,61192.0,0.16400298]
[1724420279005,0.163417,61193.0,61192.0,0.16400298]
[1724420279181,0.163413,61195.0,61192.0,0.16400298]
[1724420279382,0.163416,61194.0,61192.0,0.16400298]
[1724420279887,0.163416,61194.0,61192.0,0.16700298]
[1724420280087,0.02662734,61195.0,61193.0,0.163416]
[1724420280307,0.02662734,61195.0,61194.0,0.16400298]
[1724420280505,0.02662734,61195.0,61194.0,0.65751409]
[1724420280733,0.02662734,61195.0,61194.0,0.65424598]
[1724420281062,0.02662734,61195.0,61194.0,0.65524598]
[1724420281063,0.02562734,61195.0,61194.0,0.65524598]
[1724420281264,0.02562734,61195.0,61194.0,0.65424598]
[1724420281701,0.02662734,61195.0,61194.0,0.65424598]
[1724420281902,0.27193934,61195.0,61194.0,0.16400298]
[1724420282113,0.92558734,61195.0,61194.0,0.18071]
[1724420282289,0.92658734,61195.0,61194.0,0.02570702]
[1724420283199,0.92758734,61195.0,61194.0,0.009]
[1724420285360,0.99398734,61195.0,61194.0,0.009]
[1724420286538,1.32081134,61195.0,61194.0,0.009]
[1724420287406,0.163435,61187.0,61182.0,0.163446]
[1724420287634,0.326862,61188.0,61183.0,0.16400298]
[1724420287795,0.163441,61184.0,61183.0,0.18082107]
[1724420288000,0.572523,61184.0,61183.0,0.01681809]
[1724420288405,0.326898,61181.0,61171.0,0.326951]
[1724420288599,0.409082,61184.0,61171.0,0.326951]
[1724420288600,0.163458,61178.0,61172.0,0.16400298]
[1724420288829,0.163454,61179.0,61175.0,0.163464]
[1724420289029,0.326907,61180.0,61176.0,0.16400298]
[1724420289030,0.163458,61178.0,61176.0,0.16400298]
[1724420289256,0.326888,61183.0,61176.0,0.18189177]
[1724420289493,0.02563298,61179.0,61178.0,0.163456]
[1724420289693,0.02563298,61179.0,61178.0,0.32745898]
[1724420289945,0.02563298,61179.0,61178.0,0.34432757]
[1724420290194,0.02563298,61179.0,61178.0,0.01686859]
[1724420290195,0.41634198,61179.0,61178.0,0.01686859]
[1724420290379,1.31371398,61179.0,61178.0,0.01686859]
[1724420290621,0.163492,61165.0,61157.0,0.327023]
[1724420290825,0.163492,61165.0,61161.0,0.163501]
[1724420291035,0.241289,61166.0,61162.0,0.16400298]
[1724420291236,0.0778,61166.0,61163.0,0.163497]
[1724420291445,0.18913086,61165.0,61163.0,0.16400298]
[1724420291568,0.02563786,61165.0,61164.0,0.01701003]
[1724420291972,0.18912986,61165.0,61164.0,0.01701003]
[1724420292183,0.51611386,61165.0,61164.0,0.01701003]
[1724420292388,0.163494,61164.0,61163.0,0.16400298]
[1724420292593,0.163494,61164.0,61163.0,0.16700298]
[1724420292801,0.163494,61164.0,61163.0,0.18402311]
[1724420293090,0.490483,61164.0,61163.0,0.18102311]
[1724420293304,0.817472,61164.0,61163.0,0.02202013]
[1724420293650,0.327003,61162.0,61153.0,0.163523]
[1724420293832,0.327003,61162.0,61154.0,0.16400298]
[1724420293833,0.00162103,61161.0,61154.0,0.16400298]
[1724420294035,0.163518,61155.0,61154.0,0.18111408]
[1724420294313,0.163518,61155.0,61154.0,0.16400298]
[1724420294540,0.163514,61157.0,61154.0,0.18111408]
[1724420294785,0.02564217,61155.0,61154.0,0.18111408]
[1724420295503,0.26626017,61155.0,61154.0,0.18111408]
[1724420295737,0.10274217,61155.0,61154.0,0.18111408]
[1724420296343,0.26726017,61155.0,61154.0,0.18411408]
[1724420296552,0.02664217,61155.0,61154.0,0.34763508]
[1724420296939,0.02664217,61155.0,61154.0,0.35663508]
[1724420297160,0.02664217,61155.0,61154.0,0.68367808]
[1724420297385,0.02664217,61155.0,61154.0,1.00172108]
[1724420297613,0.02664217,61155.0,61154.0,0.67467808]
[1724420298254,0.02664217,61155.0,61154.0,1.01272108]
[1724420298255,0.02764217,61155.0,61154.0,1.01272108]
[1724420298523,0.02764217,61155.0,61154.0,0.68567808]
[1724420298749,0.02764217,61155.0,61154.0,0.35863508]
[1724420299416,0.02764217,61155.0,61154.0,0.68567808]
[1724420299631,0.02764217,61155.0,61154.0,0.35863508]
[1724420299842,0.02764217,61155.0,61154.0,0.68567808]
[1724420300053,0.02764217,61155.0,61154.0,1.01272108]
[1724420300751,0.02764217,61155.0,61154.0,1.01372108]
[1724420300933,0.02764217,61155.0,61154.0,1.01272108]
[1724420301168,0.02764217,61155.0,61154.0,1.09212108]
[1724420301581,0.02764217,61155.0,61154.0,1.09412108]
[1724420301992,0.02764217,61155.0,61154.0,1.09112108]
[1724420302370,0.02764217,61155.0,61154.0,1.09212108]
[1724420302936,0.02764217,61155.0,61154.0,1.09112108]
[1724420303572,0.02764217,61155.0,61154.0,0.19511408]
[1724420303992,0.02764217,61155.0,61154.0,0.35863508]
[1724420304195,0.02764217,61155.0,61154.0,0.68667808]
[1724420304409,0.02764217,61155.0,61154.0,1.01272108]
[1724420304598,0.33236017,61155.0,61154.0,0.19511408]
[1724420304861,0.16884217,61155.0,61154.0,0.19511408]
[1724420305061,0.02764217,61155.0,61154.0,0.66856698]
[1724420305235,0.02764217,61155.0,61154.0,0.17800298]
[1724420305836,0.02768217,61155.0,61154.0,0.17800298]
[1724420306077,0.02768217,61155.0,61154.0,0.34152398]
[1724420306323,0.02768217,61155.0,61154.0,0.17800298]
[1724420307998,0.02768217,61155.0,61154.0,0.34152398]
[1724420308751,0.02768217,61155.0,61154.0,0.35802175]
[1724420309439,0.02768217,61155.0,61154.0,0.68506475]
[1724420309716,0.02768217,61155.0,61154.0,0.35802175]
[1724420310772,0.02768217,61155.0,61154.0,0.19450075]
[1724420311238,0.02768217,61155.0,61154.0,0.35802175]
[1724420311484,0.02768217,61155.0,61154.0,0.19450075]
[1724420311972,0.19120017,61155.0,61154.0,0.19450075]
[1724420312205,0.8468952,61155.0,61154.0,0.03049777]
[1724420312684,0.8468952,61155.0,61154.0,0.014]
[1724420314706,0.9251952,61155.0,61154.0,0.014]
[1724420315001,0.5981582,61155.0,61154.0,0.014]
[1724420315932,0.9251952,61155.0,61154.0,0.014]
[1724420316175,0.9856952,61155.0,61154.0,0.014]
[1724420316390,0.16648217,61155.0,61154.0,0.014]
[1724420316809,0.16648217,61155.0,61154.0,0.03049777]
[1724420317012,0.16548217,61155.0,61154.0,0.003]
[1724420317216,0.16948217,61155.0,61154.0,0.01949777]
[1724420317417,0.16848217,61155.0,61151.0,0.163527]
[1724420317617,0.16848217,61155.0,61154.0,0.01649777]
[1724420317822,0.16448217,61155.0,61151.0,0.16400298]
[1724420318033,0.17248217,61155.0,61154.0,0.01649777]
[1724420318242,0.17248217,61155.0,61151.0,0.16400298]
[1724420318448,0.17248217,61155.0,61154.0,0.01649777]
[1724420318710,0.17248217,61155.0,61154.0,0.002]
[1724420318913,0.03368217,61155.0,61154.0,0.01849777]
[1724420319211,0.03368217,61155.0,61154.0,0.18201877]
[1724420319555,0.02568217,61155.0,61154.0,0.18201877]
[1724420319761,0.02568217,61155.0,61154.0,0.18001877]
[1724420320167,0.02568217,61155.0,61154.0,0.18401877]
[1724420320610,0.02668217,61155.0,61154.0,0.18401877]
[1724420320872,0.02668217,61155.0,61154.0,1.00210775]
[1724420321080,0.02668217,61155.0,61154.0,0.99910775]
[1724420321482,0.02668217,61155.0,61154.0,0.34802175]
[1724420322156,0.02668217,61155.0,61154.0,0.35591907]
[1724420322292,0.02668217,61155.0,61154.0,0.02839509]
[1724420322493,0.02568217,61155.0,61154.0,0.02839509]
[1724420322706,0.02568217,61155.0,61154.0,0.02739509]
[1724420322900,0.02568217,61155.0,61154.0,0.19291609]
[1724420323107,0.02568217,61155.0,61154.0,0.18991609]
[1724420323331,0.02568217,61155.0,61154.0,0.52195909]
[1724420324148,0.02568217,61155.0,61154.0,0.19491609]
[1724420324346,0.02568217,61155.0,61154.0,0.03139509]
[1724420324549,0.02568217,61155.0,61154.0,0.19491609]
[1724420324782,0.02568217,61155.0,61154.0,0.52195909]
[1724420326160,0.02568217,61155.0,61154.0,0.51495909]
[1724420326366,0.02568217,61155.0,61154.0,0.51795909]
[1724420326820,0.02568217,61155.0,61154.0,0.51495909]
[1724420327013,0.02568217,61155.0,61154.0,0.51595909]
[1724420327167,0.02568217,61155.0,61154.0,0.52095909]
[1724420327377,0.02568217,61155.0,61154.0,0.84700209]
[1724420328990,0.02568217,61155.0,61154.0,0.84900209]
[1724420329785,0.02568217,61155.0,61154.0,1.17604509]
[1724420331040,0.02568217,61155.0,61154.0,1.34004807]
[1724420331257,0.02568217,61155.0,61154.0,1.74859107]
[1724420331460,0.02568217,61155.0,61154.0,1.83477785]
[1724420331655,0.02568217,61155.0,61154.0,1.93477785]
[1724420331802,0.02568217,61155.0,61154.0,1.94705868]
[1724420332006,0.02568217,61155.0,61154.0,1.60473485]
[1724420332224,0.02568217,61155.0,61154.0,1.93177785]
[1724420332472,0.02568217,61155.0,61154.0,1.90219107]
[1724420332666,0.02568217,61155.0,61154.0,1.90419107]
[1724420332868,0.02668217,61155.0,61154.0,1.91319107]
[1724420333073,0.02768217,61155.0,61154.0,1.94177721]
[1724420333274,0.02768217,61155.0,61154.0,1.91619107]
[1724420333474,0.02768217,61155.0,61154.0,1.93977566]
[1724420333771,0.02768217,61155.0,61154.0,1.94177566]
[1724420333976,0.02768217,61155.0,61154.0,1.91619107]
[1724420335125,0.16778217,61155.0,61154.0,0.55454314]
[1724420335326,0.16778217,61155.0,61154.0,0.85600209]
[1724420335713,0.10758217,61155.0,61154.0,1.02000507]
[1724420337819,0.10758217,61155.0,61154.0,0.69296207]
[1724420338733,0.10758217,61155.0,61154.0,0.03839509]
[1724420339125,0.10758217,61155.0,61154.0,0.03049777]
[1724420340066,0.2727212,61155.0,61154.0,0.03049777]
[1724420340268,0.1092032,61155.0,61154.0,0.014]
[1724420340674,0.1092032,61155.0,61154.0,0.03049777]
[1724420340880,0.2727212,61155.0,61154.0,0.03049777]
[1724420341348,0.1092032,61155.0,61154.0,0.03049777]
[1724420341943,0.2727212,61155.0,61154.0,0.03049777]
[1724420342146,0.1092032,61155.0,61154.0,0.03049777]
[1724420342282,0.10758217,61155.0,61154.0,0.014]
[1724420342682,0.27110017,61155.0,61154.0,0.014]
[1724420342907,0.27010017,61155.0,61154.0,0.011]
[1724420343210,0.27010017,61155.0,61143.0,0.327098]
[1724420343211,0.163522,61154.0,61147.0,0.163538]
[1724420343408,0.00162103,61153.0,61147.0,0.163538]
[1724420343883,0.11158217,61155.0,61148.0,0.01655843]
[1724420344059,0.11158217,61155.0,61150.0,0.163532]
[1724420344362,0.02568217,61155.0,61154.0,0.490564]
[1724420344595,0.02568217,61155.0,61154.0,0.98160998]
[1724420346004,0.02568217,61155.0,61154.0,0.98260998]
[1724420346239,0.02568217,61155.0,61154.0,0.164521]
[1724420346400,0.02568217,61155.0,61154.0,0.163521]
[1724420346653,0.02568217,61155.0,61153.0,0.163522]
[1724420346856,0.00162103,61154.0,61153.0,0.163522]
[1724420347273,0.00162103,61154.0,61151.0,0.0165281]
[1724420347274,0.143,61154.0,61151.0,0.0165281]
[1724420347480,0.143,61154.0,61146.0,0.327081]
[1724420347481,0.143,61154.0,61153.0,0.01650788]
[1724420347720,0.143,61154.0,61152.0,0.01651799]
[1724420347891,0.143,61154.0,61153.0,0.01650788]
[1724420348126,0.143,61154.0,61153.0,0.01850788]
[1724420348260,0.143,61154.0,61152.0,0.163526]
[1724420348443,0.143,61154.0,61153.0,0.01650788]
[1724420348637,0.143,61154.0,61153.0,0.18003188]
[1724420348843,0.143,61154.0,61153.0,0.163524]
[1724420349086,0.143,61154.0,61153.0,0.18003188]
[1724420349737,0.146,61154.0,61153.0,0.50707988]
[1724420349969,0.003,61154.0,61153.0,0.83412788]
[1724420350219,0.02568217,61155.0,61154.0,0.817607]
[1724420350418,0.02568217,61155.0,61154.0,1.30865298]
[1724420350622,0.02568217,61155.0,61154.0,1.32515075]
[1724420351711,0.02568217,61155.0,61154.0,0.99910775]
[1724420352405,0.02568217,61155.0,61154.0,1.00310775]
[1724420354784,0.02568217,61155.0,61154.0,1.33115075]
[1724420355284,0.02568217,61155.0,61154.0,1.41055075]
[1724420355533,0.02568217,61155.0,61154.0,1.41255075]
[1724420355786,0.02568217,61155.0,61154.0,1.57275075]
[1724420356515,0.02568217,61155.0,61154.0,1.56875075]
[1724420356750,0.02568217,61155.0,61154.0,1.57775075]
[1724420357485,0.02668217,61155.0,61154.0,1.58175075]
[1724420358828,0.02668217,61155.0,61154.0,1.57875075]
[1724420359039,0.02668217,61155.0,61154.0,1.57975075]
[1724420359234,0.02668217,61155.0,61154.0,1.58175075]
[1724420360178,0.02668217,61155.0,61154.0,1.57875075]
[1724420360398,0.02668217,61155.0,61154.0,1.57975075]
[1724420361386,0.02668217,61155.0,61154.0,1.58175075]
[1724420364495,0.02668217,61155.0,61154.0,1.90879375]
[1724420364701,0.02668217,61155.0,61154.0,2.37053095]
[1724420364935,0.02668217,61155.0,61154.0,1.93437774]
[1724420365142,0.02668217,61155.0,61154.0,2.00786859]
[1724420365358,0.02668217,61155.0,61154.0,1.93437774]
[1724420365614,0.02668217,61155.0,61154.0,1.98336468]
[1724420366117,0.02668217,61155.0,61154.0,1.97336468]
[1724420366387,0.02568217,61155.0,61154.0,2.30840768]
[1724420366595,0.01145337,61155.0,61154.0,2.30802672]
[1724420367002,0.01145337,61155.0,61154.0,1.94537775]
[1724420367434,0.00104,61155.0,61154.0,1.94537775]
[1724420367644,0.00104,61155.0,61154.0,1.93537775]
[1724420368054,0.00104,61155.0,61154.0,1.94937775]
[1724420368966,0.00104,61155.0,61154.0,2.02282261]
[1724420369189,0.00104,61155.0,61154.0,1.92379375]
[1724420369404,0.00104,61155.0,61154.0,1.99833411]
[1724420369828,0.00104,61155.0,61154.0,2.40999009]
[1724420370229,0.00104,61155.0,61154.0,2.73703309]
[1724420370436,0.00104,61155.0,61154.0,2.63905923]
[1724420371278,0.00104,61155.0,61154.0,2.31201623]
[1724420371828,0.00104,61155.0,61154.0,1.99831508]
[1724420372026,0.00104,61155.0,61154.0,1.55713353]
[1724420372230,0.00104,61155.0,61154.0,1.53155075]
[1724420372377,0.00104,61155.0,61154.0,1.53255075]
[1724420373367,0.00104,61155.0,61154.0,1.53455075]
[1724420373619,0.00104,61155.0,61154.0,0.04349777]
[1724420373620,0.08264,61155.0,61154.0,0.04349777]
[1724420373793,0.31357903,61155.0,61154.0,0.04349777]
[1724420373991,0.64035698,61155.0,61154.0,0.04349777]
[1724420374194,0.64035698,61155.0,61154.0,0.027]
[1724420374409,0.31331998,61155.0,61154.0,0.027]
[1724420374639,0.64035698,61155.0,61154.0,0.027]
[1724420374850,0.64035698,61155.0,61154.0,0.014]
[1724420374851,0.96661303,61155.0,61154.0,0.014]
[1724420375055,0.76988249,61155.0,61154.0,0.014]
[1724420375256,1.315029,61155.0,61154.0,0.014]
[1724420375669,0.1469,61144.0,61138.0,0.163564]
[1724420375875,0.00162103,61143.0,61140.0,0.00775888]
[1724420376073,0.163556,61141.0,61139.0,0.01664944]
[1724420376295,0.163556,61141.0,61135.0,0.163572]
[1724420376503,0.163556,61141.0,61135.0,0.16400298]
[1724420376695,0.08082103,61140.0,61135.0,0.00767099]
[1724420376887,0.163566,61138.0,61135.0,0.00767099]
[1724420377094,0.00162103,61137.0,61132.0,0.163579]
[1724420377255,0.00162103,61137.0,61133.0,0.32757898]
[1724420377432,0.00162103,61137.0,61134.0,0.1]
[1724420377633,0.00162103,61137.0,61134.0,0.26400298]
[1724420377840,0.02727047,61137.0,61135.0,0.01668989]
[1724420378067,0.00162103,61136.0,61135.0,0.01668989]
[1724420378634,0.30379003,61136.0,61135.0,0.01668989]
[1724420378841,0.14022103,61136.0,61135.0,0.01668989]
[1724420379062,0.1386,61136.0,61135.0,0.01668989]
[1724420379685,0.1386,61136.0,61135.0,0.163572]
[1724420380004,0.02564944,61137.0,61136.0,0.490708]
[1724420380215,0.02564944,61137.0,61136.0,0.67139076]
[1724420380627,0.02564944,61137.0,61136.0,0.01667978]
[1724420381066,0.02564944,61137.0,61136.0,0.18024878]
[1724420381489,0.02564944,61137.0,61136.0,0.18424878]
[1724420382145,0.02564944,61137.0,61136.0,0.18024878]
[1724420382559,0.02764944,61137.0,61136.0,0.18024878]
[1724420383570,0.02764944,61137.0,61136.0,0.18124878]
[1724420384325,0.02764944,61137.0,61136.0,0.50838778]
[1724420384527,0.02564944,61137.0,61136.0,0.50738778]
[1724420384739,0.02664944,61137.0,61136.0,0.18024878]
[1724420384940,0.02664944,61137.0,61136.0,0.18224878]
[1724420385145,0.02564944,61137.0,61136.0,0.18224878]
[1724420385348,0.02564944,61137.0,61136.0,0.18024878]
[1724420385556,0.02564944,61137.0,61136.0,0.01667978]
[1724420385778,0.02564944,61137.0,61136.0,0.18024878]
[1724420386183,0.02564944,61137.0,61136.0,0.18124878]
[1724420386596,0.02564944,61137.0,61136.0,0.51238778]
[1724420386805,0.02564944,61137.0,61136.0,0.18524878]
[1724420387424,0.02564944,61137.0,61136.0,0.51238778]
[1724420388227,0.02564944,61137.0,61136.0,1.00352976]
[1724420389490,0.02564944,61137.0,61136.0,0.18524878]
[1724420389692,0.02564944,61137.0,61136.0,0.02167978]
[1724420389901,0.02564944,61137.0,61136.0,0.18524878]
[1724420390688,0.02564944,61137.0,61136.0,0.02167978]
[1724420392260,0.02564944,61137.0,61136.0,0.51238778]
[1724420392785,0.02564944,61137.0,61136.0,1.00352976]
[1724420398622,0.02564944,61137.0,61136.0,1.33066876]
[1724420398850,0.02564944,61137.0,61136.0,1.00352976]
[1724420401041,0.02564944,61137.0,61136.0,1.80720776]
[1724420401242,0.02564944,61137.0,61136.0,1.90720776]
[1724420401640,0.02564944,61137.0,61136.0,1.58006876]
[1724420401824,0.02564944,61137.0,61136.0,1.57606876]
[1724420402488,0.02564944,61137.0,61136.0,1.57506876]
[1724420402615,0.02564944,61137.0,61136.0,1.57606876]
[1724420403168,0.02564944,61137.0,61136.0,1.92779957]
[1724420403406,0.02564944,61137.0,61136.0,1.60466057]
[1724420403590,0.02564944,61137.0,61136.0,1.57906876]
[1724420403792,0.02564944,61137.0,61136.0,1.60066106]
[1724420403994,0.02564944,61137.0,61136.0,1.57506876]
[1724420404169,0.02564944,61137.0,61136.0,1.58706876]
[1724420404579,0.02664944,61137.0,61136.0,1.58906876]
[1724420404845,0.02564944,61137.0,61136.0,1.57506876]
[1724420404992,0.02564944,61137.0,61136.0,1.58906876]
[1724420405193,0.02664944,61137.0,61136.0,1.60306876]
[1724420405396,0.02564944,61137.0,61136.0,1.94180065]
[1724420405582,0.02564944,61137.0,61136.0,1.61466165]
[1724420405779,0.02664944,61137.0,61136.0,1.95580065]
[1724420406262,0.02664944,61137.0,61136.0,1.62866165]
[1724420406467,0.02664944,61137.0,61136.0,1.61498579]
[1724420406614,0.02564944,61137.0,61136.0,1.60098579]
[1724420406779,0.02564944,61137.0,61136.0,1.61498579]
[1724420407219,0.02564944,61137.0,61136.0,1.9025319]
[1724420407421,0.02564944,61137.0,61136.0,1.60098548]
[1724420407646,0.02564944,61137.0,61136.0,1.5863929]
[1724420407848,0.10864944,61137.0,61136.0,0.2080069]
[1724420408073,0.10864944,61137.0,61136.0,0.03000392]
[1724420408074,0.27221644,61137.0,61136.0,0.03000392]
[1724420408273,0.27221644,61137.0,61136.0,0.01700392]
[1724420408274,0.66287147,61137.0,61136.0,0.01700392]
[1724420408449,0.33573747,61137.0,61136.0,0.00032414]
[1724420408647,0.33673747,61137.0,61136.0,0.01332414]
[1724420409045,0.33573747,61137.0,61136.0,0.00032414]
[1724420409271,0.17217047,61137.0,61136.0,0.00032414]
[1724420409528,0.17154944,61137.0,61136.0,0.01432414]
[1724420409784,0.17317047,61137.0,61136.0,0.01432414]
[1724420409987,0.17154944,61137.0,61136.0,0.01432414]
[1724420410397,0.17154944,61137.0,61136.0,0.01700392]
[1724420410602,0.1459,61137.0,61136.0,0.00032414]
[1724420410801,0.1459,61137.0,61136.0,0.01700392]
[1724420411059,0.1459,61137.0,61136.0,0.00132414]
[1724420411256,0.1529,61137.0,61136.0,0.01800392]
[1724420411461,0.1449,61137.0,61136.0,0.00032414]
[1724420411664,0.1489,61137.0,61136.0,0.01700392]
[1724420411871,0.1489,61137.0,61136.0,0.00032414]
[1724420412036,0.1449,61137.0,61136.0,0.00032414]
[1724420412249,0.1469,61137.0,61136.0,0.01700392]